fUST/lending_fUST_20240922
["ID","MTS","AMOUNT","RATE_DAILY","PERIOD"]
[338859691,1726948244648,-500.0,0.00014292,2]
[338859692,1726948244658,-500.0,0.00014292,2]
[338859693,1726948244667,-500.0,0.00014292,2]
[338859694,1726948244676,-524.23712558,0.00014292,2]
[338859695,1726948244687,-500.0,0.00014292,2]
[338859696,1726948244697,-500.0,0.00014292,2]
[338859697,1726948244706,-536.01,0.00014292,2]
[338859698,1726948244720,-500.0,0.00014292,2]
[338859699,1726948244730,-500.0,0.00014293,2]
[338859700,1726948244741,-500.0,0.00014293,2]
[338859701,1726948244751,-504.37926488,0.00014293,2]
[338859702,1726948244761,-500.0,0.00014293,2]
[338859703,1726948244771,-601.06917231,0.00014293,2]
[338859704,1726948244780,-451.46160202,0.00014293,2]
[338859705,1726948244790,-500.0,0.00014293,2]
[338859706,1726948244800,-500.0,0.00014293,2]
[338859707,1726948244809,-500.0,0.00014293,2]
[338859708,1726948244819,-500.0,0.00014293,2]
[338859709,1726948244829,-500.0,0.00014293,2]
[338859710,1726948244838,-500.0,0.00014293,2]
[338859711,1726948244848,-500.0,0.00014293,2]
[338859712,1726948244858,-161.49,0.00014293,2]
[338859713,1726948244868,-500.0,0.00014293,2]
[338859714,1726948244877,-500.0,0.00014293,2]
[338859715,1726948244886,-500.0,0.00014293,2]
[338859716,1726948244897,-501.17714478,0.00014293,2]
[338859717,1726948244907,-500.0,0.00014293,2]
[338859718,1726948244916,-500.0,0.00014293,2]
[338859719,1726948244926,-500.0,0.00014293,2]
[338859720,1726948244936,-500.0,0.00014293,2]
[338859721,1726948244946,-500.0,0.00014293,2]
[338859722,1726948244955,-500.0,0.00014293,2]
[338859723,1726948244965,-500.0,0.00014293,2]
[338859724,1726948244985,-611.18984245,0.00014293,2]
[338859725,1726948244994,-500.0,0.00014293,2]
[338859726,1726948245004,-389.31955495,0.00014293,2]
[338859727,1726948245014,-819.01,0.00014293,2]
[338859728,1726948245024,-500.0,0.00014293,2]
[338859729,1726948245034,-500.0,0.00014293,2]
[338859730,1726948245043,-500.0,0.00014293,2]
[338859731,1726948245053,-500.0,0.00014293,2]
[338859732,1726948245066,-500.0,0.00014293,2]
[338859733,1726948245076,-268.5491018,0.00014293,2]
[338859734,1726948245085,-500.0,0.00014293,2]
[338859735,1726948245094,-500.0,0.00014293,2]
[338859736,1726948245103,-505.68,0.00014293,2]
[338859737,1726948245113,-500.0,0.00014293,2]
[338859738,1726948245122,-500.0,0.00014293,2]
[338859739,1726948245132,-156.44103273,0.00014293,2]
[338859740,1726948245143,-500.0,0.00014293,2]
[338859741,1726948245154,-500.0,0.00014293,2]
[338859742,1726948245164,-474.68,0.00014293,2]
[338859743,1726948245174,-500.0,0.00014293,2]
[338859744,1726948245183,-747.32,0.00014293,2]
[338859745,1726948245193,-500.0,0.00014293,2]
[338859746,1726948245202,-509.28277334,0.00014293,2]
[338859747,1726948245212,-500.0,0.00014293,2]
[338859748,1726948245222,-500.0,0.00014293,2]
[338859749,1726948245232,-500.0,0.00014293,2]
[338859750,1726948245243,-500.0,0.00014293,2]
[338859751,1726948245253,-617.99440258,0.00014298,2]
[338859752,1726948245262,-600.0,0.00014339,2]
[338859753,1726948245272,-452.948452,0.00014384,2]
[338859754,1726948245282,-795.2730831,0.00014465,2]
[338859755,1726948245292,-57859.5940123,0.00014537,2]
[338859756,1726948245301,-500.0,0.00014564,2]
[338859757,1726948245311,-562.94,0.00014564,2]
[338859758,1726948245321,-229.23,0.00014564,2]
[338859759,1726948245331,-500.0,0.00014564,2]
[338859760,1726948245348,-500.0,0.00014564,2]
[338859761,1726948245361,-500.0,0.00014564,2]
[338859762,1726948245371,-18716.97,0.00014564,2]
[338859763,1726948245381,-1609.83,0.00014564,2]
[338859764,1726948245392,-239.96,0.00014564,2]
[338859765,1726948245401,-503.32025459,0.00014565,2]
[338859766,1726948245411,-500.0,0.00014565,2]
[338859767,1726948245421,-507.33251565,0.00014565,2]
[338859768,1726948245431,-500.0,0.00014565,2]
[338859769,1726948245441,-500.0,0.00014565,2]
[338859770,1726948245451,-500.0,0.00014565,2]
[338859771,1726948245462,-533.24,0.00014565,2]
[338859772,1726948245473,-500.0,0.00014565,2]
[338859773,1726948245484,-504.32847145,0.00014565,2]
[338859774,1726948245494,-500.0,0.00014565,2]
[338859775,1726948245505,-500.0,0.00014565,2]
[338859777,1726948245517,-500.0,0.00014565,2]
[338859779,1726948245528,-500.0,0.00014565,2]
[338859781,1726948245538,-506.75706171,0.00014565,2]
[338859782,1726948245548,-500.0,0.00014565,2]
[338859783,1726948245559,-591.72,0.00014565,2]
[338859784,1726948245569,-500.0,0.00014565,2]
[338859785,1726948245579,-500.0,0.00014565,2]
[338859786,1726948245589,-500.0,0.00014565,2]
[338859787,1726948245599,-500.0,0.00014565,2]
[338859788,1726948245611,-500.0,0.00014565,2]
[338859789,1726948245620,-500.0,0.00014565,2]
[338859790,1726948245631,-500.0,0.00014565,2]
[338859791,1726948245641,-686.28,0.00014565,2]
[338859792,1726948245652,-500.0,0.00014565,2]
[338859793,1726948245662,-500.0,0.00014565,2]
[338859794,1726948245673,-500.0,0.00014565,2]
[338859795,1726948245683,-460.35283347,0.00014565,2]
[338859796,1726948245694,-502.16199467,0.00014565,2]
[338859797,1726948245706,-500.0,0.00014565,2]
[338859798,1726948245717,-500.0,0.00014565,2]
[338859800,1726948245729,-500.0,0.00014565,2]
[338859801,1726948245740,-500.0,0.00014565,2]
[338859802,1726948245751,-500.82516217,0.00014565,2]
[338859803,1726948245761,-500.0,0.00014565,2]
[338859804,1726948245774,-500.0,0.00014565,2]
[338859805,1726948245785,-509.13836696,0.00014565,2]
[338859806,1726948245794,-500.0,0.00014565,2]
[338859807,1726948245804,-500.0,0.00014565,2]
[338859808,1726948245816,-541.16260263,0.00014565,2]
[338859809,1726948245826,-246.40261625,0.00014565,2]
[338859810,1726948245836,-500.0,0.00014565,2]
[338859811,1726948245846,-1005.41,0.00014565,2]
[338859812,1726948245856,-500.0,0.00014565,2]
[338859813,1726948245866,-500.0,0.00014565,2]
[338859814,1726948245876,-264.11893172,0.00014566,2]
[338859815,1726948245886,-500.0,0.00014566,2]
[338859816,1726948245896,-670.82,0.00014566,2]
[338859817,1726948245906,-500.0,0.00014566,2]
[338859818,1726948245916,-500.0,0.00014566,2]
[338859819,1726948245926,-500.0,0.00014566,2]
[338859820,1726948245935,-500.0,0.00014566,2]
[338859821,1726948245946,-868.38,0.00014566,2]
[338859822,1726948245956,-383.03799806,0.00014566,2]
[338859823,1726948245966,-500.0,0.00014566,2]
[338859824,1726948245976,-5557.98,0.00014566,2]
[338859825,1726948245986,-500.0,0.00014566,2]
[338859826,1726948245995,-337.36,0.00014566,2]
[338859827,1726948246006,-880.47,0.00014566,2]
[338859828,1726948246016,-553.12,0.00014566,2]
[338859829,1726948246027,-500.0,0.00014566,2]
[338859830,1726948246037,-500.0,0.00014566,2]
[338859831,1726948246047,-391.56868331,0.00014566,2]
[338859832,1726948246059,-353.24,0.00014566,2]
[338859833,1726948246070,-500.0,0.00014566,2]
[338859834,1726948246080,-500.0,0.00014566,2]
[338859835,1726948246090,-536.01,0.00014566,2]
[338859836,1726948246100,-500.0,0.00014567,2]
[338859837,1726948246111,-500.0,0.00014567,2]
[338859838,1726948246120,-257.58766823,0.00014567,2]
[338859839,1726948246131,-500.0,0.00014567,2]
[338859840,1726948246141,-500.0,0.00014567,2]
[338859841,1726948246151,-500.0,0.00014567,2]
[338859842,1726948246160,-500.0,0.00014567,2]
[338859843,1726948246170,-398.85,0.00014567,2]
[338859844,1726948246179,-500.0,0.00014567,2]
[338859845,1726948246188,-500.0,0.00014567,2]
[338859846,1726948246198,-500.0,0.00014567,2]
[338859847,1726948246208,-500.0,0.00014567,2]
[338859848,1726948246220,-500.0,0.00014567,2]
[338859849,1726948246230,-819.01,0.00014567,2]
[338859850,1726948246239,-500.0,0.00014567,2]
[338859851,1726948246251,-500.0,0.00014567,2]
[338859852,1726948246260,-500.0,0.00014567,2]
[338859853,1726948246270,-500.0,0.00014567,2]
[338859854,1726948246280,-500.0,0.00014567,2]
[338859855,1726948246290,-500.0,0.00014567,2]
[338859856,1726948246300,-500.0,0.00014567,2]
[338859857,1726948246309,-505.68,0.00014567,2]
[338859858,1726948246320,-500.0,0.00014567,2]
[338859859,1726948246331,-500.0,0.00014567,2]
[338859860,1726948246341,-500.0,0.00014567,2]
[338859861,1726948246350,-500.0,0.00014567,2]
[338859862,1726948246359,-747.32,0.00014567,2]
[338859863,1726948246369,-546.56980272,0.00014567,2]
[338859864,1726948246378,-500.0,0.00014567,2]
[338859865,1726948246387,-330.36191335,0.00014567,2]
[338859866,1726948246397,-500.0,0.00014567,2]
[338859867,1726948246407,-500.0,0.00014838,2]
[338859868,1726948246416,-562.94,0.00014838,2]
[338859869,1726948246425,-500.0,0.00014838,2]
[338859870,1726948246435,-500.0,0.00014838,2]
[338859871,1726948246444,-500.0,0.00014838,2]
[338859872,1726948246453,-18716.97,0.00014838,2]
[338859873,1726948246463,-1609.83,0.00014838,2]
[338859874,1726948246473,-533.24,0.00014839,2]
[338859875,1726948246483,-468.31288503,0.00014839,2]
[338859876,1726948246493,-500.0,0.00014839,2]
[338859877,1726948246502,-591.72,0.00014839,2]
[338859878,1726948246514,-500.0,0.00014839,2]
[338859879,1726948246525,-500.0,0.00014839,2]
[338859880,1726948246536,-500.0,0.00014839,2]
[338859881,1726948246547,-686.28,0.00014839,2]
[338859882,1726948246557,-500.0,0.00014839,2]
[338859883,1726948246567,-500.0,0.00014839,2]
[338859884,1726948246577,-277.17657893,0.00014839,2]
[338859885,1726948246587,-500.0,0.00014839,2]
[338859886,1726948246597,-1005.41,0.00014839,2]
[338859887,1726948246606,-500.0,0.00014839,2]
[338859888,1726948246616,-500.0,0.00014839,2]
[338859889,1726948246625,-500.0,0.0001484,2]
[338859890,1726948246634,-670.82,0.0001484,2]
[338859891,1726948246644,-588.96662193,0.0001484,2]
[338859892,1726948246654,-499.38,0.0001484,2]
[338859893,1726948246664,-500.0,0.0001484,2]
[338859894,1726948246673,-500.0,0.0001484,2]
[338859895,1726948246682,-868.38,0.0001484,2]
[338859896,1726948246692,-5557.98,0.0001484,2]
[338859897,1726948246702,-500.0,0.0001484,2]
[338859898,1726948246711,-500.0,0.0001484,2]
[338859899,1726948246722,-880.47,0.0001484,2]
[338859900,1726948246731,-553.12,0.0001484,2]
[338859901,1726948246740,-500.0,0.0001484,2]
[338859902,1726948246750,-500.0,0.0001484,2]
[338859903,1726948246761,-500.0,0.0001484,2]
[338859904,1726948246770,-500.0,0.0001484,2]
[338859905,1726948246781,-536.01,0.0001484,2]
[338859906,1726948246791,-500.0,0.00014841,2]
[338859907,1726948246801,-500.0,0.00014841,2]
[338859908,1726948246812,-500.0,0.00014841,2]
[338859909,1726948246822,-500.0,0.00014841,2]
[338859910,1726948246831,-500.0,0.00014841,2]
[338859911,1726948246841,-500.0,0.00014841,2]
[338859912,1726948246851,-500.0,0.00014841,2]
[338859913,1726948246861,-500.0,0.00014841,2]
[338859914,1726948246870,-500.0,0.00014841,2]
[338859915,1726948246879,-500.0,0.00014841,2]
[338859916,1726948246889,-500.0,0.00014841,2]
[338859917,1726948246898,-819.01,0.00014841,2]
[338859918,1726948247000,-500.0,0.00014841,2]
[338859919,1726948247148,-500.0,0.00014841,2]
[338859920,1726948247157,-500.0,0.00014841,2]
[338859921,1726948247168,-500.0,0.00014841,2]
[338859922,1726948247178,-500.0,0.00014841,2]
[338859923,1726948247187,-500.0,0.00014841,2]
[338859924,1726948247197,-500.0,0.00014841,2]
[338859925,1726948247206,-505.68,0.00014841,2]
[338859926,1726948247215,-528.6808732,0.00014841,2]
[338859927,1726948247227,-500.0,0.00014841,2]
[338859928,1726948247236,-500.0,0.00014841,2]
[338859929,1726948247246,-500.0,0.00014841,2]
[338859930,1726948247256,-747.32,0.00014841,2]
[338859931,1726948247266,-500.0,0.00014841,2]
[338859932,1726948247276,-500.0,0.00014841,2]
[338859933,1726948247285,-1382.63,0.00015,2]
[338859934,1726948247295,-500.0,0.00015006,2]
[338859935,1726948247304,-500.0,0.00015006,2]
[338859936,1726948247314,-303.89639885,0.00015006,2]
[338859937,1726948247323,-500.0,0.00015006,2]
[338859938,1726948247333,-500.0,0.00015031,2]
[338859939,1726948247343,-500.0,0.00015031,2]
[338859940,1726948247352,-500.0,0.00015044,2]
[338859941,1726948247362,-500.0,0.00015065,2]
[338859942,1726948247371,-452.948452,0.00015068,2]
[338859943,1726948247380,-150.112239,0.000151,2]
[338859944,1726948247390,-500.0,0.00015112,2]
[338859945,1726948247399,-562.94,0.00015112,2]
[338859946,1726948247408,-500.0,0.00015112,2]
[338859947,1726948247417,-500.0,0.00015112,2]
[338859948,1726948247426,-500.0,0.00015112,2]
[338859949,1726948247436,-18716.97,0.00015112,2]
[338859950,1726948247445,-1609.83,0.00015112,2]
[338859951,1726948247454,-533.24,0.00015113,2]
[338859952,1726948247463,-500.0,0.00015113,2]
[338859953,1726948247473,-591.72,0.00015113,2]
[338859954,1726948247483,-500.0,0.00015113,2]
[338859955,1726948247492,-500.0,0.00015113,2]
[338859956,1726948247502,-500.0,0.00015113,2]
[338859957,1726948247511,-686.28,0.00015113,2]
[338859958,1726948247520,-500.0,0.00015113,2]
[338859959,1726948247530,-500.0,0.00015113,2]
[338859960,1726948247539,-500.0,0.00015113,2]
[338859961,1726948247549,-1005.41,0.00015113,2]
[338859962,1726948247558,-500.0,0.00015113,2]
[338859963,1726948247567,-500.0,0.00015114,2]
[338859964,1726948247577,-670.82,0.00015114,2]
[338859965,1726948247586,-500.0,0.00015114,2]
[338859966,1726948247595,-500.0,0.00015114,2]
[338859967,1726948247604,-868.38,0.00015114,2]
[338859968,1726948247613,-5557.98,0.00015114,2]
[338859969,1726948247622,-500.0,0.00015114,2]
[338859970,1726948247631,-209.69262105,0.00015114,2]
[338859971,1726948247641,-880.47,0.00015114,2]
[338859972,1726948247650,-553.12,0.00015114,2]
[338859973,1726948247660,-336.61644193,0.00015114,2]
[338859974,1726948247671,-500.0,0.00015114,2]
[338859975,1726948247681,-500.0,0.00015114,2]
[338859976,1726948247690,-500.0,0.00015114,2]
[338859977,1726948247700,-536.01,0.00015114,2]
[338859978,1726948247710,-500.0,0.00015114,2]
[338859979,1726948247719,-500.0,0.00015114,2]
[338859980,1726948247728,-420.48816014,0.00015114,2]
[338859981,1726948247738,-206.11729024,0.00015114,2]
[338859982,1726948247748,-213.07180449,0.00015114,2]
[338859983,1726948247759,-500.0,0.00015114,2]
[338859984,1726948247768,-500.0,0.00015114,2]
[338859985,1726948247777,-468.12550988,0.00015114,2]
[338859986,1726948247786,-500.0,0.00015114,2]
[338859987,1726948247795,-500.0,0.00015114,2]
[338859988,1726948247804,-500.0,0.00015114,2]
[338859989,1726948247813,-500.0,0.00015114,2]
[338859990,1726948247822,-500.0,0.00015114,2]
[338859991,1726948247831,-500.0,0.00015114,2]
[338859992,1726948247841,-171.37108574,0.00015114,2]
[338859993,1726948247850,-500.0,0.00015114,2]
[338859994,1726948247859,-500.0,0.00015114,2]
[338859995,1726948247868,-500.0,0.00015114,2]
[338859996,1726948247877,-500.0,0.00015115,2]
[338859997,1726948247887,-500.0,0.00015115,2]
[338859998,1726948247898,-500.0,0.00015115,2]
[338859999,1726948247909,-500.0,0.00015115,2]
[338860000,1726948247919,-500.0,0.00015115,2]
[338860001,1726948247928,-500.0,0.00015115,2]
[338860002,1726948247938,-500.0,0.00015115,2]
[338860003,1726948247947,-500.0,0.00015115,2]
[338860004,1726948247956,-500.0,0.00015115,2]
[338860005,1726948247966,-402.1663439,0.00015115,2]
[338860006,1726948247976,-217.3981368,0.00015115,2]
[338860007,1726948247986,-819.01,0.00015115,2]
[338860008,1726948247995,-500.0,0.00015115,2]
[338860009,1726948248004,-500.0,0.00015115,2]
[338860010,1726948248014,-500.0,0.00015115,2]
[338860011,1726948248023,-500.0,0.00015115,2]
[338860012,1726948248033,-500.0,0.00015115,2]
[338860013,1726948248043,-500.0,0.00015115,2]
[338860014,1726948248052,-500.0,0.00015115,2]
[338860015,1726948248064,-505.68,0.00015115,2]
[338860016,1726948248073,-500.0,0.00015115,2]
[338860017,1726948248083,-500.0,0.00015115,2]
[338860018,1726948248095,-500.0,0.00015115,2]
[338860019,1726948248106,-747.32,0.00015115,2]
[338860020,1726948248116,-500.0,0.00015115,2]
[338860021,1726948248126,-500.0,0.00015115,2]
[338860022,1726948248137,-500.0,0.0001521,2]
[338860023,1726948248146,-500.0,0.0001521,2]
[338860024,1726948248156,-500.0,0.0001521,2]
[338860025,1726948248165,-161.10785562,0.00015246,2]
[338860026,1726948248175,-500.0,0.00015246,2]
[338860027,1726948248184,-500.0,0.00015246,2]
[338860028,1726948248193,-500.0,0.00015296,2]
[338860029,1726948248202,-500.0,0.00015296,2]
[338860030,1726948248211,-600.14169489,0.00015296,2]
[338860031,1726948248222,-150.112233,0.000153,2]
[338860032,1726948248232,-500.0,0.00015329,2]
[338860033,1726948248243,-500.0,0.00015329,2]
[338860034,1726948248254,-500.0,0.00015329,2]
[338860035,1726948248265,-420.0,0.00015354,2]
[338860036,1726948248274,-500.0,0.00015386,2]
[338860037,1726948248284,-562.94,0.00015386,2]
[338860038,1726948248293,-500.0,0.00015386,2]
[338860039,1726948248302,-500.0,0.00015386,2]
[338860040,1726948248312,-500.0,0.00015386,2]
[338860041,1726948248321,-18716.97,0.00015386,2]
[338860042,1726948248330,-1609.83,0.00015386,2]
[338860043,1726948248339,-533.24,0.00015387,2]
[338860044,1726948248350,-500.0,0.00015387,2]
[338860045,1726948248363,-591.72,0.00015387,2]
[338860046,1726948248373,-500.0,0.00015387,2]
[338860047,1726948248383,-500.0,0.00015387,2]
[338860048,1726948248394,-500.0,0.00015387,2]
[338860049,1726948248403,-686.28,0.00015387,2]
[338860050,1726948248413,-500.0,0.00015387,2]
[338860051,1726948248423,-500.0,0.00015387,2]
[338860052,1726948248433,-500.0,0.00015387,2]
[338860053,1726948248443,-1005.41,0.00015387,2]
[338860054,1726948248453,-288.46,0.00015387,2]
[338860055,1726948248463,-500.0,0.00015388,2]
[338860056,1726948248473,-670.82,0.00015388,2]
[338860057,1726948248482,-500.0,0.00015388,2]
[338860058,1726948248491,-500.0,0.00015388,2]
[338860059,1726948248501,-868.38,0.00015388,2]
[338860060,1726948248510,-5557.98,0.00015388,2]
[338860061,1726948248522,-500.0,0.00015388,2]
[338860062,1726948248533,-880.47,0.00015388,2]
[338860063,1726948248543,-553.12,0.00015388,2]
[338860064,1726948248553,-500.0,0.00015388,2]
[338860065,1726948248564,-500.0,0.00015388,2]
[338860066,1726948248573,-500.0,0.00015388,2]
[338860067,1726948248583,-536.01,0.00015388,2]
[338860068,1726948248592,-500.0,0.00015389,2]
[338860069,1726948248602,-500.0,0.00015389,2]
[338860070,1726948248613,-500.0,0.00015389,2]
[338860071,1726948248623,-159.79670019,0.00015389,2]
[338860072,1726948248634,-500.0,0.00015389,2]
[338860073,1726948248645,-500.0,0.00015389,2]
[338860074,1726948248654,-500.0,0.00015389,2]
[338860075,1726948248664,-819.01,0.00015389,2]
[338860076,1726948248673,-500.0,0.00015389,2]
[338860077,1726948248682,-500.0,0.00015389,2]
[338860078,1726948248691,-500.0,0.00015389,2]
[338860079,1726948248700,-500.0,0.00015389,2]
[338860080,1726948248710,-500.0,0.00015389,2]
[338860081,1726948248720,-500.0,0.00015389,2]
[338860082,1726948248729,-500.0,0.00015389,2]
[338860083,1726948248739,-505.68,0.00015389,2]
[338860084,1726948248749,-616.84828035,0.00015389,2]
[338860085,1726948248758,-500.0,0.00015389,2]
[338860086,1726948248767,-500.0,0.00015389,2]
[338860087,1726948248777,-747.32,0.00015389,2]
[338860088,1726948248787,-500.0,0.00015389,2]
[338860089,1726948248798,-485.67941946,0.00015389,2]
[338860090,1726948248808,-151.0,0.00015399,2]
[338860091,1726948248818,-151.0,0.00015399,2]
[338860092,1726948248829,-300.0,0.000154,5]
[338860093,1726948248840,-420.0,0.00015417,2]
[338860094,1726948248849,-500.0,0.0001566,2]
[338860095,1726948248860,-562.94,0.0001566,2]
[338860096,1726948248870,-500.0,0.0001566,2]
[338860097,1726948248879,-500.0,0.0001566,2]
[338860098,1726948248888,-500.0,0.0001566,2]
[338860099,1726948248898,-18716.97,0.0001566,2]
[338860100,1726948248907,-1609.83,0.0001566,2]
[338860101,1726948248918,-533.24,0.00015661,2]
[338860102,1726948248928,-315.61596561,0.00015661,2]
[338860103,1726948248937,-591.72,0.00015661,2]
[338860104,1726948248947,-500.0,0.00015661,2]
[338860105,1726948248956,-500.0,0.00015661,2]
[338860106,1726948248966,-500.0,0.00015661,2]
[338860107,1726948248976,-686.28,0.00015661,2]
[338860108,1726948248986,-500.0,0.00015661,2]
[338860109,1726948248995,-500.0,0.00015661,2]
[338860110,1726948249005,-500.0,0.00015661,2]
[338860111,1726948249015,-1005.41,0.00015661,2]
[338860112,1726948249024,-500.0,0.00015662,2]
[338860113,1726948249033,-670.82,0.00015662,2]
[338860114,1726948249043,-500.0,0.00015662,2]
[338860115,1726948249052,-500.0,0.00015662,2]
[338860116,1726948249065,-868.38,0.00015662,2]
[338860117,1726948249074,-5557.98,0.00015662,2]
[338860118,1726948249084,-500.0,0.00015662,2]
[338860119,1726948249094,-880.47,0.00015662,2]
[338860120,1726948249106,-553.12,0.00015662,2]
[338860121,1726948249115,-500.0,0.00015662,2]
[338860122,1726948249125,-500.0,0.00015662,2]
[338860123,1726948249136,-500.0,0.00015662,2]
[338860124,1726948249147,-536.01,0.00015662,2]
[338860125,1726948249157,-500.0,0.00015663,2]
[338860126,1726948249166,-500.0,0.00015663,2]
[338860127,1726948249175,-500.0,0.00015663,2]
[338860128,1726948249185,-454.51217959,0.00015663,2]
[338860129,1726948249194,-819.01,0.00015663,2]
[338860130,1726948249204,-500.0,0.00015663,2]
[338860131,1726948249213,-483.05090178,0.00015663,2]
[338860132,1726948249222,-500.0,0.00015663,2]
[338860133,1726948249232,-500.0,0.00015663,2]
[338860134,1726948249242,-500.0,0.00015663,2]
[338860135,1726948249251,-500.0,0.00015663,2]
[338860136,1726948249261,-500.0,0.00015663,2]
[338860137,1726948249270,-505.68,0.00015663,2]
[338860138,1726948249279,-500.0,0.00015663,2]
[338860139,1726948249288,-500.0,0.00015663,2]
[338860140,1726948249298,-747.32,0.00015663,2]
[338860141,1726948249306,-500.0,0.00015663,2]
[338860142,1726948249316,-500.0,0.00015934,2]
[338860143,1726948249325,-562.94,0.00015934,2]
[338860144,1726948249334,-500.0,0.00015934,2]
[338860145,1726948249345,-500.0,0.00015934,2]
[338860146,1726948249355,-500.0,0.00015934,2]
[338860147,1726948249365,-18716.97,0.00015934,2]
[338860148,1726948249374,-1609.83,0.00015934,2]
[338860149,1726948249383,-533.24,0.00015935,2]
[338860150,1726948249393,-591.72,0.00015935,2]
[338860151,1726948249404,-500.0,0.00015935,2]
[338860152,1726948249414,-529.28359655,0.00015935,2]
[338860153,1726948249424,-446.58,0.00015935,2]
[338860154,1726948249434,-686.28,0.00015935,2]
[338860155,1726948249444,-500.0,0.00015935,2]
[338860156,1726948249454,-500.0,0.00015935,2]
[338860157,1726948249464,-500.0,0.00015935,2]
[338860158,1726948249473,-1005.41,0.00015935,2]
[338860159,1726948249483,-500.0,0.00015936,2]
[338860160,1726948249492,-670.82,0.00015936,2]
[338860161,1726948249501,-519.6524215,0.00015936,2]
[338860162,1726948249511,-500.0,0.00015936,2]
[338860163,1726948249520,-868.38,0.00015936,2]
[338860164,1726948249529,-5557.98,0.00015936,2]
[338860165,1726948249538,-500.0,0.00015936,2]
[338860166,1726948249547,-880.47,0.00015936,2]
[338860167,1726948249557,-553.12,0.00015936,2]
[338860168,1726948249566,-500.0,0.00015936,2]
[338860169,1726948249576,-500.0,0.00015936,2]
[338860170,1726948249585,-500.0,0.00015936,2]
[338860171,1726948249594,-536.01,0.00015936,2]
[338860172,1726948249604,-500.0,0.00015937,2]
[338860173,1726948249613,-500.0,0.00015937,2]
[338860174,1726948249622,-500.0,0.00015937,2]
[338860175,1726948249632,-819.01,0.00015937,2]
[338860176,1726948249641,-500.0,0.00015937,2]
[338860177,1726948249651,-500.0,0.00015937,2]
[338860178,1726948249660,-500.0,0.00015937,2]
[338860179,1726948249669,-500.0,0.00015937,2]
[338860180,1726948249678,-500.0,0.00015937,2]
[338860181,1726948249687,-500.0,0.00015937,2]
[338860182,1726948249697,-505.68,0.00015937,2]
[338860183,1726948249706,-500.0,0.00015937,2]
[338860184,1726948249715,-500.0,0.00015937,2]
[338860185,1726948249725,-747.32,0.00015937,2]
[338860186,1726948249734,-500.0,0.00015937,2]
[338860187,1726948249743,-524.0,0.00015995,2]
[338860188,1726948249753,-150.0,0.00015995,2]
[338860189,1726948249763,-1216.0,0.00015995,2]
[338860190,1726948249773,-150.0,0.00015995,2]
[338860191,1726948249784,-46491.425,0.00015995,2]
[338860192,1726948249793,-150.154,0.00015995,2]
[338860193,1726948249804,-795.27308309,0.0001618,2]
[338860194,1726948249815,-500.0,0.00016208,2]